fUST/lending_fUST_20240501
["ID","MTS","AMOUNT","RATE_DAILY","PERIOD"]
[325136048,1714536653998,-500.0,0.0019726,120]
[325136049,1714536654008,-2058.95,0.0019726,120]
[325136050,1714536654018,-500.0,0.0019726,120]
[325136051,1714536654027,-1670.39,0.0019726,120]
[325136052,1714536654036,-500.0,0.0019726,120]
[325136053,1714536654045,-1204.64,0.0019726,120]
[325136054,1714536654054,-3452.44,0.0019726,2]
[325136055,1714536654066,-500.0,0.0019726,120]
[325136056,1714536654076,-2906.21,0.0019726,120]
[325136057,1714536654085,-500.0,0.0019726,120]
[325136058,1714536654094,-262.74828554,0.0019726,120]
[325136059,1714536654103,-2034.82,0.0019726,120]
[325136060,1714536654112,-568.07232495,0.0019726,120]
[325136061,1714536654121,-500.0,0.0019726,120]
[325136062,1714536654130,-500.0,0.0019726,120]
[325136063,1714536654139,-500.0,0.0019726,120]
[325136064,1714536654148,-1813.67,0.0019726,120]
[325136065,1714536654157,-1010.41,0.0019726,120]
[325136066,1714536654166,-500.0,0.0019726,120]
[325136067,1714536654176,-500.0,0.0019726,120]
[325136068,1714536654185,-500.0,0.0019726,120]
[325136069,1714536654194,-807.95,0.0019726,120]
[325136070,1714536654203,-500.0,0.0019726,120]
[325136071,1714536654212,-500.0,0.0019726,120]
[325136072,1714536654222,-500.0,0.0019726,120]
[325136073,1714536654231,-4149.97,0.0019726,120]
[325136074,1714536654240,-651.26,0.0019726,120]
[325136075,1714536654249,-2203.72,0.0019726,120]
[325136076,1714536654258,-830.17,0.0019726,120]
[325136077,1714536654267,-3716.94,0.0019726,120]
[325136078,1714536654276,-500.0,0.0019726,120]
[325136079,1714536654285,-1143.06,0.0019726,120]
[325136080,1714536654294,-500.0,0.0019726,120]
[325136081,1714536654303,-11589.3,0.0019726,120]
[325136082,1714536654314,-500.0,0.0019726,120]
[325136083,1714536654322,-500.0,0.0019726,120]
[325136084,1714536654331,-1672.97,0.0019726,120]
[325136085,1714536654340,-2093.54,0.0019726,120]
[325136086,1714536654349,-500.0,0.0019726,60]
[325136087,1714536654358,-2237.77,0.0019726,120]
[325136088,1714536654367,-985.82,0.0019726,120]
[325136089,1714536654377,-500.0,0.0019726,120]
[325136090,1714536654386,-1000.0,0.002,120]
[325136091,1714536654395,-500.43316943,0.002,30]
[325136092,1714536654403,-1280.6648645,0.002,120]
[325136093,1714536654413,-10000.0,0.00203299,120]
[325136094,1714536654421,-152.88481962,0.00204273,120]
[325136095,1714536654431,-156.54103504,0.00205507,120]
[325136096,1714536654442,-500.0,0.00208219,120]
[325136097,1714536654453,-500.0,0.00208219,120]
[325136098,1714536654462,-940.2,0.00208219,2]
[325136099,1714536654471,-316.92037211,0.00208219,120]
[325136100,1714536654480,-2284.63,0.00208219,120]
[325136101,1714536654490,-921.92,0.00208219,120]
[325136102,1714536654499,-500.0,0.00208219,120]
[325136103,1714536654508,-500.0,0.00208219,120]
[325136104,1714536654517,-500.25708991,0.00208219,120]
[325136105,1714536654527,-2130.64,0.00208219,120]
[325136106,1714536654537,-1250.0,0.00208219,120]
[325136107,1714536654546,-2049.74,0.00208219,120]
[325136108,1714536654555,-387.35517916,0.00208219,120]
[325136109,1714536654565,-1250.0,0.00208219,120]
[325136110,1714536654574,-491.37713353,0.00208219,120]
[325136111,1714536654630,-1677.93,0.00208219,120]
[325136112,1714536654640,-500.0,0.00208219,120]
[325136113,1714536654649,-1000.0,0.00208219,120]
[325136114,1714536654658,-500.0,0.00208219,120]
[325136115,1714536654667,-2058.95,0.00208219,120]
[325136116,1714536654676,-500.0,0.00208219,120]
[325136117,1714536654685,-1670.39,0.00208219,120]
[325136118,1714536654694,-500.0,0.00208219,120]
[325136119,1714536654703,-1204.64,0.00208219,120]
[325136120,1714536654712,-3452.44,0.00208219,2]
[325136121,1714536654721,-500.0,0.00208219,120]
[325136122,1714536654729,-2906.21,0.00208219,120]
[325136123,1714536654738,-486.284506,0.00208219,120]
[325136124,1714536654747,-2034.82,0.00208219,120]
[325136125,1714536654756,-500.0,0.00208219,120]
[325136126,1714536654765,-500.0,0.00208219,120]
[325136127,1714536654774,-595.15745461,0.00208219,120]
[325136128,1714536654783,-1813.67,0.00208219,120]
[325136129,1714536654793,-1010.41,0.00208219,120]
[325136130,1714536654802,-500.0,0.00208219,120]
[325136131,1714536654811,-500.0,0.00208219,120]
[325136132,1714536654820,-500.0,0.00208219,120]
[325136133,1714536654829,-807.95,0.00208219,120]
[325136134,1714536654838,-500.0,0.00208219,120]
[325136135,1714536654847,-500.0,0.00208219,120]
[325136136,1714536654857,-500.0,0.00208219,120]
[325136137,1714536654866,-4149.97,0.00208219,120]
[325136138,1714536654875,-651.26,0.00208219,120]
[325136139,1714536654884,-2203.72,0.00208219,120]
[325136140,1714536654894,-830.17,0.00208219,120]
[325136141,1714536654904,-3716.94,0.00208219,120]
[325136142,1714536654913,-500.0,0.00208219,120]
[325136143,1714536654922,-1143.06,0.00208219,120]
[325136144,1714536654931,-500.0,0.00208219,120]
[325136145,1714536654940,-11589.3,0.00208219,120]
[325136146,1714536654949,-500.0,0.00208219,120]
[325136147,1714536654957,-500.0,0.00208219,120]
[325136148,1714536654967,-1672.97,0.00208219,120]
[325136149,1714536654975,-2093.54,0.00208219,120]
[325136150,1714536654985,-500.0,0.00208219,60]
[325136151,1714536654994,-2237.77,0.00208219,120]
[325136152,1714536655003,-985.82,0.00208219,120]
[325136153,1714536655012,-500.0,0.00208219,120]
[325136154,1714536655021,-267.08,0.0020899,35]
[325136155,1714536655030,-16569.20282765,0.0021,2]
[325136156,1714536655121,-972.0795421,0.0021,2]
[325136157,1714536656048,-219.6,0.000989,120]
[325136158,1714536656065,-500.0,0.00109589,120]
[325136159,1714536656080,-500.0,0.00120547,120]
[325136160,1714536656094,-316.84030073,0.00131506,120]
[325136161,1714536656108,-151.0,0.0021,120]
[325136162,1714536656121,-1850.88537649,0.0021,120]
[325136163,1714536656137,-599.9869008,0.0021,120]
[325136164,1714536656219,-171.63,0.000687,120]
[325136165,1714536656228,-171.50965048,0.00085548,120]
[325136166,1714536656237,-171.50965048,0.00089999,120]
[325136167,1714536656246,-6.02716005,0.00094449,120]
[325136168,1714536656257,-165.48249043,0.00094449,120]
[325136169,1714536656266,-172.0,0.000989,120]
[325136170,1714536656276,-151.0,0.001899,120]
[325136171,1714536656284,-95.60216935,0.0021,120]
[325136217,1714536754371,152.88481962,0.00042244,30]
[325136219,1714536781007,154.65974855,0.00024382,2]
[325136230,1714536961238,154.64431807,9.999e-05,2]
[325136232,1714536979273,154.64431807,0.00020913,2]
[325136233,1714536999275,292.46436851,0.00020913,2]
[325136234,1714536999777,-228.024965,0.00049863,2]
[325136235,1714536999802,-268.06461862,0.0005,4]
[325136236,1714536999827,-151.0,0.0005,120]
[325136237,1714537007694,-228.024965,0.00054448,2]
[325136246,1714537040066,156.54103502,0.00049117,30]
[325136270,1714537052927,152.88481962,0.00051245,60]
[325136279,1714537208445,177.8,0.00034046,3]
[325136281,1714537321926,500.0,0.000575,120]
[325136299,1714537341583,170.53664524,0.00050392,60]
[325136313,1714537349164,152.88481962,0.00046073,30]
[325136316,1714537386211,19080.98407433,0.000575,4]
[325136318,1714537473105,4608.36860617,0.000575,2]
[325136322,1714537543282,-228.024965,0.00059034,2]
[325136323,1714537543302,-234.47140589,0.00059933,2]
[325136324,1714537543321,-228.024965,0.00063619,2]
[325136325,1714537543340,-152.88481962,0.00068066,120]
[325136326,1714537543360,-228.024965,0.00068205,2]
[325136327,1714537543378,-486.33472313,0.00068699,120]
[325136328,1714537543397,-160.570029,0.0007148,2]
[325136329,1714537543417,-119.02791539,0.0007279,120]
[325136330,1714537575655,200.12196174,0.00020913,2]
[325136333,1714537629099,-108.99704961,0.0007279,120]
[325136334,1714537629120,-913.848942,0.00075269,30]
[325136335,1714537629140,-178.06762621,0.00077276,2]
[325136336,1714537629160,-228.024965,0.00077376,120]
[325136337,1714537629178,-228.024965,0.00081961,120]
[325136338,1714537629197,-976.48819153,0.0008219,4]
[325136339,1714537629223,-1669.38884477,0.0008219,4]
[325136340,1714537629242,-177.8,0.00085496,120]
[325136341,1714537629261,-228.024965,0.00086546,120]
[325136342,1714537629281,-228.024965,0.00091132,120]
[325136343,1714537629301,-150.63846768,0.00092012,2]
[325136344,1714537629321,-301.27693536,0.00093558,4]
[325136345,1714537629340,-228.024965,0.00095717,120]
[325136346,1714537629359,-675.43875431,0.00098628,90]
[325136347,1714537629380,-169.745349,0.001,2]
[325136348,1714537629400,-228.024965,0.00100303,120]
[325136349,1714537629420,-152.88481962,0.00101562,120]
[325136350,1714537629439,-170.53664524,0.00102531,120]
[325136351,1714537629459,-228.024965,0.00104888,120]
[325136352,1714537629479,-228.024965,0.00109474,120]
[325136353,1714537629498,-156.81597716,0.00109587,14]
[325136354,1714537629517,-718.54795119,0.00109587,2]
[325136355,1714537629540,-154.65974855,0.00109587,14]
[325136356,1714537629561,-154.65974855,0.00109587,14]
[325136357,1714537629581,-732.70879145,0.00109587,14]
[325136358,1714537629600,-252.37482425,0.00109587,14]
[325136359,1714537629620,-156.09900906,0.00109587,14]
[325136360,1714537629640,-155.47112681,0.00109587,14]
[325136361,1714537629661,-476.36778717,0.00109587,14]
[325136362,1714537629680,-154.85372289,0.00109587,14]
[325136363,1714537629702,-295.38051911,0.00109587,2]
[325136364,1714537629722,-410.19888165,0.00109587,14]
[325136365,1714537629745,-200.11468728,0.00109587,14]
[325136366,1714537629772,-155.02842893,0.00109587,14]
[325136367,1714537629791,-494.160256,0.00109588,120]
[325136368,1714537629813,-225.33552172,0.00109588,31]
[325136369,1714537629834,-500.0,0.00109589,120]
[325136370,1714537629853,-333.99854397,0.00109589,120]
[325136371,1714537629872,-500.0,0.00109589,120]
[325136372,1714537629891,-500.0,0.00109589,120]
[325136373,1714537629911,-500.0,0.00109589,120]
[325136374,1714537629931,-500.0,0.00109589,120]
[325136375,1714537629949,-500.0,0.00109589,120]
[325136376,1714537629968,-500.0,0.00109589,120]
[325136377,1714537629987,-501.14219273,0.00109589,120]
[325136378,1714537630006,-466.48480987,0.00109589,120]
[325136379,1714537630028,-500.0,0.00109589,120]
[325136380,1714537630050,-500.0,0.00109589,120]
[325136381,1714537630146,-500.0,0.00109589,120]
[325136382,1714537630169,-501.05146108,0.00109589,120]
[325136383,1714537630194,-95.85420164,0.00109589,120]
[325136411,1714537746120,-19638.5621379,0.00068196,2]
[325136412,1714537746140,-152.88481962,0.0007549,120]
[325136413,1714537746160,-152.88481962,0.00098053,120]
[325136414,1714537746180,-500.0,0.001,120]
[325136415,1714537746199,-170.95245188,0.001,120]
[325136416,1714537746218,-500.0,0.00105,120]
[325136417,1714537746237,-500.0,0.00106,120]
[325136418,1714537746258,-500.0,0.00107,120]
[325136419,1714537746278,-170.53664525,0.00107743,120]
[325136420,1714537746298,-500.0,0.00108,120]
[325136421,1714537746317,-486.83160351,0.00109,120]
[325136422,1714537746336,-200.29444689,0.0010937,120]
[325136423,1714537746356,-330.91225034,0.00109489,14]
[325136424,1714537746376,-8044.78707885,0.00109489,2]
[325136425,1714537746395,-1011.12203938,0.00109489,120]
[325136426,1714537746415,-855.947955,0.00109587,120]
[325136427,1714537746434,-154.79876161,0.00109588,14]
[325136428,1714537746454,-1780.91,0.00109588,120]
[325136429,1714537746473,-1780.91,0.00109588,120]
[325136430,1714537746569,-1780.91,0.00109588,120]
[325136431,1714537746590,-1780.91,0.00109588,120]
[325136432,1714537746610,-1780.91,0.00109588,120]
[325136433,1714537746631,-500.0,0.00109589,120]
[325136434,1714537746650,-500.0,0.00109589,120]
[325136435,1714537746669,-500.0,0.00109589,120]
[325136436,1714537746689,-500.0,0.00109589,120]
[325136437,1714537746709,-500.0,0.00109589,120]
[325136438,1714537746729,-500.0,0.00109589,120]
[325136439,1714537746751,-500.0,0.00109589,120]
[325136440,1714537746770,-500.0,0.00109589,120]
[325136441,1714537746793,-502.15607403,0.00109589,120]
[325136442,1714537746813,-500.0,0.00109589,120]
[325136443,1714537746833,-500.0,0.00109589,120]
[325136444,1714537746852,-500.0,0.00109589,120]
[325136445,1714537746871,-500.0,0.00109589,120]
[325136446,1714537746892,-500.0,0.00109589,120]
[325136447,1714537746911,-500.0,0.00109589,120]
[325136448,1714537746929,-500.0,0.00109589,120]
[325136449,1714537746948,-500.0,0.00109589,120]
[325136450,1714537746967,-500.0,0.00109589,120]
[325136451,1714537746985,-500.0,0.00109589,120]
[325136452,1714537747004,-500.0,0.00109589,120]
[325136453,1714537747023,-500.0,0.00109589,120]
[325136454,1714537747042,-500.0,0.00109589,120]
[325136455,1714537747065,-500.0,0.00109589,120]
[325136456,1714537747084,-501.93320826,0.00109589,120]
[325136457,1714537747103,-437.11914342,0.00109589,120]
[325136458,1714537747122,-500.0,0.00109589,120]
[325136459,1714537747143,-501.93202165,0.00109589,120]
[325136460,1714537747163,-500.0,0.00109589,120]
[325136461,1714537747183,-500.0,0.00109589,120]
[325136462,1714537747202,-500.0,0.00109589,120]
[325136463,1714537747221,-500.0,0.00109589,120]
[325136464,1714537747241,-500.0,0.00109589,120]
[325136465,1714537747261,-686.81,0.00109589,2]
[325136466,1714537747280,-500.0,0.00109589,120]
[325136467,1714537747300,-500.0,0.00109589,120]
[325136468,1714537747324,-500.0,0.00109589,120]
[325136469,1714537747344,-500.0,0.00109589,120]
[325136470,1714537747364,-500.0,0.00109589,120]
[325136471,1714537747384,-500.0,0.00109589,120]
[325136472,1714537747404,-500.0,0.00109589,120]
[325136473,1714537747423,-347.53608318,0.00109589,120]
[325136474,1714537747443,-500.0,0.00109589,120]
[325136475,1714537747464,-500.0,0.00109589,120]
[325136476,1714537747485,-300.0,0.00109589,2]
[325136477,1714537747507,-500.0,0.00109589,120]
[325136478,1714537747528,-500.0,0.00109589,120]
[325136479,1714537747549,-500.0,0.00109589,120]
[325136480,1714537747570,-500.0,0.00109589,120]
[325136481,1714537747590,-410.75536784,0.00109589,3]
[325136482,1714537771723,166.906789,0.00049863,2]
[325136483,1714537772129,166.906789,0.00059543,2]
[325136484,1714537809874,83.09503277,0.00034097,3]
[325136485,1714537809905,90.10496723,0.00034097,3]
[325136512,1714537832433,-166.906789,0.00069224,120]
[325136514,1714537832443,-166.906789,0.00078904,120]
[325136516,1714537832454,-173.2,0.00085543,120]
[325136517,1714537832463,-166.906789,0.00088584,120]
[325136518,1714537832472,-166.906789,0.00098265,120]
[325136519,1714537832481,-1000.0,0.001,120]
[325136520,1714537832490,-166.906789,0.00107945,120]
[325136521,1714537832581,-399.92299794,0.00109489,120]
[325136608,1714537838557,-600.07700206,0.00109489,120]
[325136610,1714537838567,-160.37590344,0.00109588,120]
[325136612,1714537838578,-89.24463216,0.00109589,3]
[325136614,1714537838587,-500.0,0.00109589,120]
[325136616,1714537838596,-500.68146842,0.00109589,120]
[325136618,1714537838605,-502.66962795,0.00109589,120]
[325136620,1714537838615,-500.0,0.00109589,120]
[325136622,1714537838624,-1808.67,0.00109589,120]
[325136624,1714537838633,-500.0,0.00109589,120]
[325136626,1714537838641,-500.0,0.00109589,120]
[325136627,1714537838651,-500.0,0.00109589,120]
[325136629,1714537838659,-500.0,0.00109589,120]
[325136631,1714537838668,-500.0,0.00109589,120]
[325136633,1714537838677,-500.0,0.00109589,120]
[325136635,1714537838687,-530.42,0.00109589,120]
[325136637,1714537838697,-209.81736707,0.00109589,120]
[325136639,1714537838706,-504.1258663,0.00109589,120]
[325136641,1714537838715,-500.0,0.00109589,120]
[325136643,1714537838724,-500.0,0.00109589,120]
[325136645,1714537838733,-500.0,0.00109589,120]
[325136647,1714537838743,-500.0,0.00109589,120]
[325136649,1714537838752,-500.0,0.00109589,120]
[325136651,1714537838762,-609.77,0.00109589,120]
[325136653,1714537838771,-484.46381902,0.00109589,120]
[325136655,1714537838780,-508.00196797,0.00109589,120]
[325136657,1714537838790,-500.000001,0.00109589,120]
[325136659,1714537838799,-500.0,0.00109589,120]
[325136661,1714537838808,-500.0,0.00109589,120]
[325136663,1714537838822,-500.0,0.00109589,120]
[325136665,1714537838833,-500.0,0.00109589,120]
[325136667,1714537838843,-500.0,0.00109589,120]
[325136669,1714537838852,-500.0,0.00109589,120]
[325136671,1714537838863,-500.0,0.00109589,120]
[325136673,1714537838872,-500.0,0.00109589,120]
[325136675,1714537838881,-500.0,0.00109589,120]
[325136677,1714537838891,-500.0,0.00109589,120]
[325136679,1714537838900,-500.0,0.00109589,120]
[325136681,1714537838912,-500.0,0.00109589,120]
[325136683,1714537838921,-500.0,0.00109589,120]
[325136684,1714537838930,-500.0,0.00109589,120]
[325136686,1714537838939,-544.9839467,0.00109589,120]
[325136688,1714537838948,-501.33472457,0.00109589,120]
[325136690,1714537838958,-500.0,0.00109589,120]
[325136692,1714537838967,-500.41649594,0.00109589,120]
[325136694,1714537838976,-500.0,0.00109589,120]
[325136696,1714537838985,-498.36308607,0.00109589,120]
[325136697,1714537838994,-500.0,0.00109589,120]
[325136699,1714537839002,-1468.19,0.00109589,120]
[325136701,1714537839012,-500.0,0.00109589,120]
[325136703,1714537839022,-507.28473217,0.00109589,120]
[325136705,1714537839030,-500.0,0.00109589,120]
[325136707,1714537839039,-500.0,0.00109589,120]
[325136709,1714537839049,-1093.75,0.00109589,120]
[325136711,1714537839058,-500.0,0.00109589,120]
[325136713,1714537839067,-514.11053095,0.00109589,120]
[325136715,1714537839076,-529.41612635,0.00109589,120]
[325136717,1714537839085,-500.0,0.00109589,120]
[325136719,1714537839095,-1093.75,0.00109589,120]
[325136721,1714537839104,-500.0,0.00109589,120]
[325136723,1714537839113,-500.0,0.00109589,120]
[325136725,1714537839122,-500.0,0.00109589,120]
[325136727,1714537839132,-500.96041443,0.00109589,120]
[325136729,1714537839142,-185.67983602,0.00109589,120]
[325136731,1714537839151,-187.38950934,0.00109589,120]
[325136733,1714537839160,-500.0,0.00109589,120]
[325136735,1714537839169,-500.0,0.00109589,120]
[325136737,1714537839178,-500.0,0.00109589,120]
[325136739,1714537839187,-500.0,0.00109589,120]
[325136740,1714537839196,-500.0,0.00109589,120]
[325136742,1714537839205,-500.0,0.00109589,120]
[325136744,1714537839215,-2347.27,0.00109589,120]
[325136747,1714537839225,-500.0,0.00109589,120]
[325136748,1714537839236,-501.93477733,0.00109589,120]
[325136750,1714537839245,-500.0,0.00109589,120]
[325136752,1714537839255,-500.70477529,0.00109589,120]
[325136754,1714537839264,-1000.0,0.00109589,120]
[325136756,1714537839273,-500.0,0.00109589,120]
[325136758,1714537839282,-500.0,0.00109589,120]
[325136760,1714537839291,-1068.64,0.00109589,120]
[325136762,1714537839300,-506.23410785,0.00109589,120]
[325136764,1714537839309,-151.26689025,0.00109589,120]
[325136766,1714537839319,-500.0,0.00109589,120]
[325136768,1714537839328,-500.0,0.00109589,120]
[325136770,1714537839337,-500.0,0.00109589,120]
[325136772,1714537839347,-500.0,0.00109589,120]
[325136773,1714537839356,-500.0,0.00109589,120]
[325136774,1714537839365,-500.0,0.00109589,120]
[325136775,1714537839375,-634.72125303,0.00109589,120]
[325136776,1714537839384,-501.28194605,0.00109589,120]
[325136777,1714537839393,-500.0,0.00109589,120]
[325136778,1714537839402,-500.0,0.00109589,120]
[325136779,1714537839411,-500.0,0.00109589,120]
[325136780,1714537839421,-500.0,0.00109589,120]
[325136781,1714537839430,-500.0,0.00109589,120]
[325136782,1714537839439,-500.0,0.00109589,120]
[325136783,1714537839448,-500.0,0.00109589,120]
[325136784,1714537839457,-256.04031963,0.00109589,120]
[325136785,1714537839466,-500.0,0.00109589,120]
[325136786,1714537839475,-500.0,0.00109589,120]
[325136787,1714537839484,-500.0,0.00109589,120]
[325136788,1714537839493,-298.85752307,0.00109589,120]
[325136789,1714537839502,-481.78261855,0.00109589,120]
[325136790,1714537839511,-500.0,0.00109589,120]
[325136791,1714537839521,-505.99143298,0.00109589,120]
[325136792,1714537839530,-515.63289179,0.00109589,120]
[325136793,1714537839539,-502.16837306,0.00109589,120]
[325136794,1714537839548,-500.0,0.00109589,120]
[325136795,1714537839557,-500.0,0.00109589,120]
[325136796,1714537839567,-614.3010178,0.00109589,120]
[325136797,1714537839576,-388.8147555,0.00109589,120]
[325136799,1714537839586,-500.0,0.00109589,120]
[325136800,1714537839595,-501.15184835,0.00109589,120]
[325136802,1714537839605,-500.0,0.00109589,120]
[325136804,1714537839614,-156.33964756,0.00109589,120]
[325136806,1714537839623,-500.0,0.00109589,120]
[325136808,1714537839634,-500.0,0.00109589,120]
[325136810,1714537839643,-500.0,0.00109589,120]
[325136820,1714537839725,-500.0,0.00109589,120]
[325136822,1714537839735,-500.0,0.00109589,7]
[325136824,1714537839744,-500.0,0.00109589,120]
[325136826,1714537839754,-500.0,0.00109589,120]
[325136828,1714537839763,-500.0,0.00109589,120]
[325136830,1714537839772,-500.0,0.00109589,120]
[325136832,1714537839781,-500.0,0.00109589,120]
[325136834,1714537839791,-500.97614412,0.00109589,120]
[325136836,1714537839800,-1166.23,0.00109589,120]
[325136838,1714537839810,-500.0,0.00109589,120]
[325136840,1714537839824,-500.6921081,0.00109589,120]
[325136842,1714537839835,-500.0,0.00109589,120]
[325136845,1714537839845,-618.34062647,0.00109589,120]
[325136846,1714537839854,-500.0,0.00109589,120]
[325136848,1714537839864,-500.0,0.00109589,120]
[325136850,1714537839873,-500.56474134,0.00109589,120]
[325136852,1714537839882,-151.0,0.00109589,120]
[325136854,1714537839892,-500.0,0.00109589,120]
[325136856,1714537839902,-500.0,0.00109589,120]
[325136858,1714537839912,-500.0,0.00109589,120]
[325136860,1714537839921,-600.0,0.00109589,120]
[325136862,1714537839930,-500.80829244,0.00109589,120]
[325136865,1714537839940,-500.0,0.00109589,120]
[325136867,1714537839949,-500.89811379,0.00109589,120]
[325136869,1714537839958,-500.0,0.00109589,120]
[325136870,1714537839967,-500.0,0.00109589,120]
[325136872,1714537839977,-500.7833895,0.00109589,120]
[325136875,1714537839986,-460.30168021,0.00109589,120]
[325136876,1714537839995,-500.0,0.00109589,120]
[325136878,1714537840005,-500.0,0.00109589,30]
[325136880,1714537840014,-154.82968734,0.00109589,120]
[325136882,1714537840024,-500.0,0.00109589,120]
[325136884,1714537840032,-500.0,0.00109589,120]
[325136886,1714537840041,-501.41323485,0.00109589,120]
[325136888,1714537840051,-500.0,0.00109589,120]
[325136890,1714537840060,-501.53059385,0.00109589,120]
[325136892,1714537840069,-500.0,0.00109589,120]
[325136894,1714537840079,-500.0,0.00109589,120]
[325136896,1714537840088,-500.0,0.00109589,120]
[325136898,1714537840097,-500.0,0.00109589,120]
[325136900,1714537840106,-500.0,0.00109589,120]
[325136902,1714537840116,-216.96698585,0.00109589,120]
[325136904,1714537840125,-501.47830467,0.00109589,120]
[325136906,1714537840134,-500.41050664,0.00109589,120]
[325136908,1714537840143,-500.0,0.00109589,120]
[325136910,1714537840152,-571.37815286,0.00109589,120]
[325136912,1714537840161,-590.88,0.00109589,120]
[325136914,1714537840171,-500.0,0.00109589,120]
[325136916,1714537840180,-500.0,0.00109589,120]
[325136918,1714537840189,-1146.96,0.00109589,120]
[325136920,1714537840198,-500.0,0.00109589,120]
[325136922,1714537840207,-500.0,0.00109589,120]
[325136924,1714537840216,-500.0,0.00109589,120]
[325136926,1714537840225,-500.0,0.00109589,120]
[325136928,1714537840234,-501.62757547,0.00109589,120]
[325136930,1714537840243,-609.1,0.00109589,120]
[325136932,1714537840252,-500.23716366,0.00109589,120]
[325136934,1714537840261,-500.0,0.00109589,120]
[325136936,1714537840270,-498.03543698,0.00109589,120]
[325136938,1714537840279,-500.0,0.00109589,7]
[325136940,1714537840288,-500.0,0.00109589,120]
[325136942,1714537840297,-282.03850126,0.00109589,120]
[325136944,1714537840307,-500.0,0.00109589,120]
[325136946,1714537840316,-500.0,0.00109589,120]
[325136948,1714537840325,-500.0,0.00109589,120]
[325136950,1714537840336,-500.0,0.00109589,120]
[325136952,1714537840344,-500.0,0.00109589,120]
[325136954,1714537840353,-500.0,0.00109589,120]
[325136956,1714537840362,-500.0,0.00109589,120]
[325136958,1714537840371,-500.0,0.00109589,120]
[325136960,1714537840380,-500.0,0.00109589,120]
[325136961,1714537840389,-500.0,0.00109589,120]
[325136963,1714537840398,-500.0,0.00109589,120]
[325136965,1714537840407,-500.0,0.00109589,120]
[325136967,1714537840416,-500.0,0.00109589,120]
[325136969,1714537840425,-261.16178485,0.00109589,120]
[325136971,1714537840434,-500.0,0.00109589,120]
[325136972,1714537840443,-500.0,0.00109589,120]
[325136974,1714537840452,-500.0,0.00109589,120]
[325136976,1714537840462,-500.0,0.00109589,120]
[325136978,1714537840471,-500.0,0.00109589,2]
[325136980,1714537840480,-500.0,0.00109589,120]
[325136982,1714537840489,-500.0,0.00109589,120]
[325136984,1714537840498,-500.0,0.00109589,120]
[325136986,1714537840507,-500.0,0.00109589,120]
[325136988,1714537840516,-500.0,0.00109589,120]
[325136990,1714537840526,-500.0,0.00109589,120]
[325136992,1714537840535,-500.96075011,0.00109589,120]
[325136994,1714537840544,-500.0,0.00109589,120]
[325136996,1714537840554,-500.0,0.00109589,120]
[325136998,1714537840563,-500.0,0.00109589,120]
[325137000,1714537840572,-500.0,0.00109589,120]
[325137002,1714537840583,-625.73595887,0.00109589,120]
[325137004,1714537840592,-500.0,0.00109589,120]
[325137006,1714537840601,-500.0,0.00109589,120]
[325137008,1714537840611,-500.0,0.00109589,120]
[325137010,1714537840620,-500.0,0.00109589,120]
[325137011,1714537840629,-2041.86,0.00109589,120]
[325137013,1714537840638,-500.0,0.00109589,120]